fUST/lending_fUST_20240822
["ID","MTS","AMOUNT","RATE_DAILY","PERIOD"]
[335523971,1724305845574,-805.05118051,0.00019178,2]
[335523972,1724305845584,-500.0,0.00019178,2]
[335523973,1724305845593,-500.0,0.00019178,2]
[335523974,1724305845602,-500.0,0.00019178,2]
[335523975,1724305845611,-1244.14,0.00019178,2]
[335523976,1724305845621,-500.0,0.00019178,2]
[335523977,1724305845631,-500.0,0.00019178,2]
[335523978,1724305845643,-500.0,0.00019178,2]
[335523979,1724305845653,-453.88066063,0.00019178,2]
[335523980,1724305845662,-500.0,0.00019178,2]
[335523981,1724305845672,-500.0,0.00019178,2]
[335523982,1724305845681,-568.03,0.00019178,2]
[335523983,1724305845690,-500.0,0.00019178,2]
[335523984,1724305845699,-500.0,0.00019178,2]
[335523985,1724305845709,-151.0,0.00019178,2]
[335523986,1724305845718,-151.0,0.00019178,2]
[335523987,1724305845728,-151.0,0.00019178,2]
[335523988,1724305845737,-151.0,0.00019178,2]
[335523989,1724305845746,-500.0,0.00019178,2]
[335523990,1724305845757,-500.0,0.00019178,2]
[335523991,1724305845766,-500.0,0.00019178,2]
[335523992,1724305845776,-500.0,0.00019178,2]
[335523993,1724305845785,-500.0,0.00019178,2]
[335523994,1724305845795,-299.55939735,0.00019178,2]
[335523995,1724305845804,-500.0,0.00019178,2]
[335523996,1724305845814,-1163.67,0.00019178,2]
[335523997,1724305845823,-500.0,0.00019178,2]
[335523998,1724305845832,-500.0,0.00019178,2]
[335523999,1724305845842,-907.72,0.00019178,2]
[335524000,1724305846038,-537.13,0.00019178,2]
[335524001,1724305846048,-500.0,0.00019178,2]
[335524002,1724305846057,-151.0,0.00019178,2]
[335524003,1724305846066,-151.0,0.00019178,2]
[335524004,1724305846076,-500.0,0.00019178,2]
[335524005,1724305846085,-500.0,0.00019178,2]
[335524006,1724305846095,-500.0,0.00019178,2]
[335524007,1724305846104,-500.0,0.00019178,2]
[335524008,1724305846113,-500.0,0.00019178,2]
[335524009,1724305846122,-500.0,0.00019178,2]
[335524010,1724305846131,-500.0,0.00019178,2]
[335524011,1724305846140,-500.0,0.00019178,2]
[335524012,1724305846150,-500.0,0.00019178,2]
[335524013,1724305846159,-500.0,0.00019178,2]
[335524014,1724305846168,-500.0,0.00019178,2]
[335524015,1724305846177,-500.0,0.00019178,2]
[335524016,1724305846186,-3533.49,0.00019178,2]
[335524017,1724305846200,-500.0,0.00019178,2]
[335524018,1724305846209,-293.93492878,0.00019178,2]
[335524019,1724305846218,-414.01371432,0.00019178,2]
[335524020,1724305846228,-500.0,0.00019178,2]
[335524021,1724305846238,-500.0,0.00019178,2]
[335524022,1724305846247,-8719.19,0.00019178,2]
[335524023,1724305846257,-500.0,0.00019178,2]
[335524024,1724305846267,-500.0,0.00019178,2]
[335524025,1724305846278,-500.0,0.00019178,2]
[335524027,1724305846287,-1002.91,0.00019178,2]
[335524029,1724305846296,-500.0,0.00019178,2]
[335524030,1724305846306,-500.0,0.00019178,2]
[335524032,1724305846317,-514.87637696,0.00019178,2]
[335524033,1724305846326,-200.0,0.00019178,2]
[335524034,1724305846335,-500.0,0.00019178,2]
[335524035,1724305846344,-4755.69,0.00019178,2]
[335524037,1724305846354,-4914.3,0.00019178,2]
[335524039,1724305846364,-500.0,0.00019178,2]
[335524041,1724305846373,-500.0,0.00019178,2]
[335524042,1724305846382,-500.0,0.00019178,2]
[335524043,1724305846392,-500.0,0.00019178,2]
[335524044,1724305846401,-500.0,0.00019178,2]
[335524046,1724305846410,-500.0,0.00019178,2]
[335524047,1724305846419,-2559.33,0.00019178,2]
[335524048,1724305846429,-1023.64,0.00019178,2]
[335524049,1724305846439,-521.23837596,0.00019178,2]
[335524050,1724305846447,-500.0,0.00019178,2]
[335524051,1724305846457,-500.0,0.00019178,2]
[335524052,1724305846468,-500.0,0.00019178,2]
[335524054,1724305846479,-500.0,0.00019178,2]
[335524056,1724305846490,-2319.33,0.00019178,2]
[335524058,1724305846501,-500.0,0.00019178,2]
[335524060,1724305846511,-500.0,0.00019178,2]
[335524061,1724305846521,-500.0,0.00019178,2]
[335524062,1724305846530,-500.0,0.00019178,2]
[335524064,1724305846540,-151.0,0.00019178,2]
[335524065,1724305846550,-151.0,0.00019178,2]
[335524066,1724305846561,-500.0,0.00019178,2]
[335524067,1724305846571,-151.0,0.00019178,2]
[335524068,1724305846581,-500.0,0.00019178,2]
[335524069,1724305846592,-500.0,0.00019178,2]
[335524071,1724305846602,-534.13,0.00019178,2]
[335524073,1724305846612,-500.0,0.00019178,2]
[335524075,1724305846622,-500.0,0.00019178,2]
[335524077,1724305846632,-17704.24,0.00019178,2]
[335524079,1724305846642,-896.07,0.00019178,2]
[335524081,1724305846651,-500.0,0.00019178,2]
[335524084,1724305846663,-500.0,0.00019178,2]
[335524086,1724305846673,-500.0,0.00019178,2]
[335524088,1724305846685,-151.0,0.00019178,2]
[335524090,1724305846697,-500.0,0.00019178,2]
[335524092,1724305846709,-151.0,0.00019178,2]
[335524094,1724305846719,-267.373395,0.00019178,2]
[335524097,1724305846733,-1928.99,0.00019178,2]
[335524099,1724305846743,-530.63,0.00019178,2]
[335524101,1724305846755,-500.0,0.00019178,2]
[335524103,1724305846766,-500.0,0.00019178,2]
[335524106,1724305846778,-500.0,0.00019178,2]
[335524108,1724305846788,-852.68,0.00019178,2]
[335524110,1724305846798,-1289.65,0.00019178,2]
[335524112,1724305846808,-1327.18,0.00019178,2]
[335524114,1724305846817,-826.87,0.00019178,2]
[335524116,1724305846827,-500.0,0.00019178,2]
[335524118,1724305846836,-500.0,0.00019178,2]
[335524120,1724305846846,-500.0,0.00019178,2]
[335524122,1724305846855,-500.0,0.00019178,2]
[335524124,1724305846865,-500.0,0.00019178,2]
[335524126,1724305846874,-500.0,0.00019178,2]
[335524128,1724305846884,-2299.41,0.00019178,2]
[335524130,1724305846895,-500.0,0.00019178,2]
[335524132,1724305846905,-500.0,0.00019178,2]
[335524135,1724305846917,-439.42039053,0.00019178,2]
[335524136,1724305846929,-500.0,0.00019178,2]
[335524137,1724305846942,-500.0,0.00019178,2]
[335524138,1724305846953,-500.0,0.00019178,2]
[335524139,1724305846963,-151.0,0.00019178,2]
[335524140,1724305846973,-151.0,0.00019178,2]
[335524141,1724305846985,-229.17503676,0.00019178,2]
[335524142,1724305846996,-151.0,0.00019178,2]
[335524143,1724305847006,-151.0,0.00019178,2]
[335524144,1724305847016,-500.0,0.00019178,2]
[335524145,1724305847027,-500.0,0.00019178,2]
[335524146,1724305847038,-1559.18,0.00019178,2]
[335524147,1724305847049,-500.0,0.00019178,2]
[335524148,1724305847060,-151.0,0.00019178,2]
[335524149,1724305847072,-500.0,0.00019178,2]
[335524150,1724305847082,-151.0,0.00019178,2]
[335524151,1724305847092,-151.0,0.00019178,2]
[335524152,1724305847101,-500.0,0.00019178,2]
[335524153,1724305847110,-500.0,0.00019178,2]
[335524154,1724305847120,-603.41574783,0.00019178,2]
[335524155,1724305847129,-500.0,0.00019178,2]
[335524156,1724305847139,-500.0,0.00019178,2]
[335524157,1724305847148,-500.0,0.00019178,2]
[335524158,1724305847157,-500.0,0.00019178,2]
[335524159,1724305847167,-500.0,0.00019178,2]
[335524160,1724305847176,-637.36,0.00019178,2]
[335524161,1724305847187,-500.0,0.00019178,2]
[335524162,1724305847199,-500.0,0.00019178,2]
[335524163,1724305847209,-1882.62,0.00019178,2]
[335524164,1724305847218,-500.0,0.00019178,2]
[335524165,1724305847228,-151.0,0.00019178,2]
[335524166,1724305847239,-508.28894404,0.00019178,2]
[335524167,1724305847248,-151.0,0.00019178,2]
[335524168,1724305847257,-151.0,0.00019178,2]
[335524169,1724305847268,-151.0,0.00019178,2]
[335524170,1724305847277,-500.0,0.00019178,2]
[335524171,1724305847287,-203.96,0.00019178,2]
[335524172,1724305847296,-500.0,0.00019178,2]
[335524173,1724305847306,-151.0,0.00019178,2]
[335524174,1724305847315,-2621.22,0.00019178,2]
[335524175,1724305847324,-151.0,0.00019178,2]
[335524176,1724305847334,-151.0,0.00019178,2]
[335524177,1724305847344,-151.0,0.00019178,2]
[335524178,1724305847354,-500.0,0.00019178,2]
[335524179,1724305847363,-500.0,0.00019178,2]
[335524180,1724305847373,-151.0,0.00019178,2]
[335524181,1724305847382,-151.0,0.00019178,2]
[335524182,1724305847393,-151.0,0.00019178,2]
[335524183,1724305847402,-500.0,0.00019178,2]
[335524184,1724305847412,-288.232121,0.00019178,2]
[335524185,1724305847422,-500.0,0.00019178,2]
[335524186,1724305847431,-500.0,0.00019178,2]
[335524187,1724305847440,-500.0,0.00019178,2]
[335524188,1724305847450,-500.0,0.00019178,2]
[335524189,1724305847460,-500.0,0.00019178,2]
[335524190,1724305847470,-500.0,0.00019178,2]
[335524191,1724305847480,-1600.59,0.00019178,2]
[335524192,1724305847490,-500.0,0.00019178,2]
[335524193,1724305847500,-500.0,0.00019178,2]
[335524194,1724305847510,-500.0,0.00019178,2]
[335524195,1724305847520,-151.0,0.00019178,2]
[335524196,1724305847530,-500.0,0.00019178,2]
[335524197,1724305847540,-151.0,0.00019178,2]
[335524198,1724305847550,-151.0,0.00019178,2]
[335524199,1724305847559,-151.0,0.00019178,2]
[335524200,1724305847569,-151.0,0.00019178,2]
[335524201,1724305847580,-151.0,0.00019178,2]
[335524202,1724305847590,-500.0,0.00019178,2]
[335524203,1724305847600,-8335.92,0.00019178,2]
[335524204,1724305847610,-151.0,0.00019178,2]
[335524205,1724305847619,-151.0,0.00019178,2]
[335524206,1724305847629,-500.0,0.00019178,2]
[335524207,1724305847638,-500.0,0.00019178,2]
[335524208,1724305847648,-151.0,0.00019178,2]
[335524209,1724305847658,-293.55396,0.00019178,2]
[335524210,1724305847667,-500.0,0.00019178,2]
[335524211,1724305847676,-500.0,0.00019178,2]
[335524212,1724305847686,-773.01,0.00019178,2]
[335524213,1724305847695,-500.0,0.00019178,2]
[335524214,1724305847705,-225.13908281,0.00019178,2]
[335524215,1724305848231,-203.73884138,0.00019177,2]
[335524216,1724305848242,-5995.34946733,0.00019177,2]
[335524217,1724305848253,-274.86091719,0.00019178,2]
[335524218,1724305848262,-500.0,0.00019178,2]
[335524219,1724305848272,-708.9,0.00019178,2]
[335524220,1724305848282,-500.0,0.00019178,2]
[335524221,1724305848292,-597.61,0.00019178,2]
[335524222,1724305848302,-547.65091328,0.00019178,2]
[335524223,1724305848311,-997.98,0.00019178,2]
[335524224,1724305848320,-500.0,0.00019178,2]
[335524225,1724305848330,-599.31,0.00019178,2]
[335524226,1724305848383,-500.0,0.00019178,2]
[335524227,1724305848394,-500.0,0.00019178,2]
[335524228,1724305848404,-834.2,0.00019178,2]
[335524229,1724305848414,-500.0,0.00019178,2]
[335524230,1724305848424,-500.0,0.00019178,2]
[335524231,1724305848433,-500.0,0.00019178,2]
[335524232,1724305848444,-151.0,0.00019178,2]
[335524233,1724305848454,-151.0,0.00019178,2]
[335524234,1724305848463,-500.0,0.00019178,2]
[335524235,1724305848473,-500.0,0.00019178,2]
[335524236,1724305848484,-502.48,0.00019178,2]
[335524237,1724305848494,-1937.73,0.00019178,2]
[335524238,1724305848503,-500.0,0.00019178,2]
[335524239,1724305848513,-500.0,0.00019178,2]
[335524240,1724305848523,-500.0,0.00019178,2]
[335524241,1724305848533,-500.0,0.00019178,2]
[335524242,1724305848543,-500.0,0.00019178,2]
[335524243,1724305848552,-857.46,0.00019178,2]
[335524244,1724305848562,-500.0,0.00019178,2]
[335524245,1724305848572,-500.0,0.00019178,2]
[335524246,1724305848581,-500.0,0.00019178,2]
[335524247,1724305848590,-523.95,0.00019178,2]
[335524248,1724305848600,-285.151377,0.00019178,2]
[335524249,1724305848609,-500.0,0.00019178,2]
[335524250,1724305848619,-285.151377,0.00019178,2]
[335524251,1724305848628,-285.151377,0.00019178,2]
[335524252,1724305848637,-285.151377,0.00019178,2]
[335524253,1724305848646,-285.151377,0.00019178,2]
[335524254,1724305848656,-500.0,0.00019178,2]
[335524255,1724305848666,-500.0,0.00019178,2]
[335524256,1724305848675,-745.11,0.00019178,2]
[335524257,1724305848685,-515.74803289,0.00019178,2]
[335524258,1724305848695,-3279.75,0.00019178,2]
[335524259,1724305848706,-285.151377,0.00019178,2]
[335524260,1724305848716,-285.151377,0.00019178,2]
[335524261,1724305848726,-285.151377,0.00019178,2]
[335524262,1724305848735,-684.1,0.00019178,2]
[335524263,1724305848745,-285.151377,0.00019178,2]
[335524264,1724305848755,-285.151377,0.00019178,2]
[335524265,1724305848765,-500.0,0.00019178,2]
[335524266,1724305848775,-500.0,0.00019178,2]
[335524267,1724305848784,-500.0,0.00019178,2]
[335524268,1724305848795,-1093.84,0.00019178,2]
[335524269,1724305848806,-500.0,0.00019178,2]
[335524270,1724305848816,-500.0,0.00019178,2]
[335524271,1724305848826,-500.0,0.00019178,2]
[335524272,1724305848835,-514.46,0.00019178,2]
[335524273,1724305848845,-151.0,0.00019178,2]
[335524274,1724305848855,-3178.67,0.00019178,2]
[335524275,1724305848865,-729.77,0.00019178,2]
[335524276,1724305848874,-500.0,0.00019178,2]
[335524277,1724305848884,-3092.51,0.00019178,2]
[335524278,1724305848894,-3092.51,0.00019178,2]
[335524279,1724305848903,-3092.51,0.00019178,2]
[335524280,1724305848913,-3092.51,0.00019178,2]
[335524281,1724305848923,-3092.51,0.00019178,2]
[335524282,1724305848932,-3092.51,0.00019178,2]
[335524283,1724305848941,-3092.51,0.00019178,2]
[335524284,1724305848951,-500.0,0.00019178,2]
[335524285,1724305848961,-3092.51,0.00019178,2]
[335524286,1724305848970,-500.0,0.00019178,2]
[335524287,1724305848981,-3092.51,0.00019178,2]
[335524288,1724305848990,-500.0,0.00019178,2]
[335524289,1724305849000,-3092.51,0.00019178,2]
[335524290,1724305849010,-500.0,0.00019178,2]
[335524291,1724305849020,-3092.51,0.00019178,2]
[335524292,1724305849030,-500.0,0.00019178,2]
[335524293,1724305849039,-500.0,0.00019178,2]
[335524294,1724305849049,-3092.51,0.00019178,2]
[335524295,1724305849058,-500.0,0.00019178,2]
[335524296,1724305849068,-3092.51,0.00019178,2]
[335524297,1724305849078,-500.0,0.00019178,2]
[335524298,1724305849087,-500.0,0.00019178,2]
[335524299,1724305849097,-3092.51,0.00019178,2]
[335524300,1724305849107,-500.0,0.00019178,2]
[335524301,1724305849116,-3092.51,0.00019178,2]
[335524302,1724305849126,-3092.51,0.00019178,2]
[335524303,1724305849135,-500.0,0.00019178,2]
[335524304,1724305849144,-3092.51,0.00019178,2]
[335524305,1724305849154,-500.0,0.00019178,2]
[335524306,1724305849163,-3092.51,0.00019178,2]
[335524307,1724305849173,-500.0,0.00019178,2]
[335524308,1724305849182,-500.0,0.00019178,2]
[335524309,1724305849192,-204.00432177,0.00019178,2]
[335524310,1724305849203,-500.0,0.00019178,2]
[335524311,1724305849213,-500.0,0.00019178,2]
[335524312,1724305849222,-500.0,0.00019178,2]
[335524313,1724305849232,-500.0,0.00019178,2]
[335524314,1724305849242,-500.0,0.00019178,2]
[335524315,1724305849251,-500.0,0.00019178,2]
[335524316,1724305849260,-151.0,0.00019178,2]
[335524317,1724305849273,-151.0,0.00019178,2]
[335524318,1724305849283,-151.0,0.00019178,2]
[335524319,1724305849292,-151.0,0.00019178,2]
[335524320,1724305849302,-500.0,0.00019178,2]
[335524321,1724305849311,-151.0,0.00019178,2]
[335524322,1724305849321,-500.0,0.00019178,2]
[335524323,1724305849330,-500.0,0.00019178,2]
[335524324,1724305849339,-151.0,0.00019178,2]
[335524325,1724305849349,-151.0,0.00019178,2]
[335524326,1724305849359,-500.0,0.00019178,2]
[335524327,1724305849368,-2120.46,0.00019178,2]
[335524328,1724305849378,-151.0,0.00019178,2]
[335524329,1724305849387,-151.0,0.00019178,2]
[335524330,1724305849396,-217.005547,0.00019178,2]
[335524331,1724305849406,-11072.76,0.00019178,2]
[335524332,1724305849416,-500.0,0.00019178,2]
[335524333,1724305849425,-500.0,0.00019178,2]
[335524334,1724305849435,-500.0,0.00019178,2]
[335524335,1724305849445,-500.0,0.00019178,2]
[335524336,1724305849454,-500.0,0.00019178,2]
[335524337,1724305849463,-500.0,0.00019178,2]
[335524338,1724305849472,-500.0,0.00019178,2]
[335524339,1724305849482,-544.36,0.00019178,2]
[335524340,1724305849499,-500.0,0.00019178,2]
[335524341,1724305849509,-500.0,0.00019178,2]
[335524342,1724305849519,-500.0,0.00019178,2]
[335524343,1724305849529,-500.0,0.00019178,2]
[335524344,1724305849539,-1150.0,0.00019178,2]
[335524345,1724305849548,-7700.0,0.00019178,30]
[335524346,1724305849557,-162.852486,0.00019178,2]
[335524347,1724305849567,-162.340736,0.00019178,2]
[335524348,1724305849576,-169.32,0.000192,2]
[335524349,1724305849585,-301.52,0.000192,2]
[335524350,1724305849595,-1856.15,0.000192,2]
[335524351,1724305849604,-476.64025032,0.00019245,2]
[335524352,1724305849614,-309.45844772,0.00019452,2]
[335524353,1724305849624,-150.112236,0.000195,2]
[335524354,1724305849634,-3092.51,0.00019588,7]
[335524355,1724305849644,-500.0,0.00019588,7]
[335524356,1724305849654,-218.257938,0.00019589,2]
[335524357,1724305849664,-218.257938,0.00019589,2]
[335524358,1724305849674,-151.558,0.00019589,2]
[335524359,1724305849685,-522.0,0.00019589,2]
[335524360,1724305849695,-151.0,0.00019589,2]
[335524361,1724305849705,-151.0,0.00019589,2]
[335524362,1724305849714,-151.0,0.00019589,2]
[335524363,1724305849725,-151.0,0.00019589,2]
[335524364,1724305849734,-151.0,0.00019589,2]
[335524365,1724305849745,-285.151377,0.00019589,2]
[335524366,1724305849755,-285.151377,0.00019589,2]
[335524367,1724305849764,-1416.0,0.00019589,2]
[335524368,1724305849775,-151.0,0.00019589,2]
[335524369,1724305849785,-150.756,0.00019589,2]
[335524370,1724305849795,-476.64025032,0.00019626,2]
[335524371,1724305849805,-3453.89189777,0.00019685,2]
[335524372,1724305849814,-3092.51,0.00019725,7]
[335524373,1724305849824,-3092.51,0.00019725,7]
[335524374,1724305849833,-3092.51,0.00019725,7]
[335524375,1724305849843,-3092.51,0.00019725,7]
[335524376,1724305849853,-3092.73493952,0.00019725,7]
[335524377,1724305849864,-296.71943104,0.00019725,7]
[335524378,1724305849875,-500.0,0.00019726,7]
[335524379,1724305849887,-500.0,0.00019726,7]
[335524380,1724305849898,-500.0,0.00019726,7]
[335524381,1724305849908,-500.0,0.00019726,7]
[335524382,1724305849917,-500.0,0.00019726,7]
[335524383,1724305849929,-500.0,0.00019726,7]
[335524384,1724305849939,-529.04,0.00019726,7]
[335524385,1724305849949,-500.0,0.00019726,7]
[335524386,1724305849960,-642.95750873,0.00019726,7]
[335524387,1724305849970,-500.0,0.00019726,7]
[335524388,1724305849980,-500.0,0.00019726,7]
[335524389,1724305849989,-500.0,0.00019726,7]
[335524390,1724305849998,-500.0,0.00019726,7]
[335524391,1724305850008,-500.0,0.00019726,7]
[335524392,1724305850018,-500.0,0.00019726,7]
[335524393,1724305850029,-500.0,0.00019726,7]
[335524394,1724305850040,-500.0,0.00019726,7]
[335524395,1724305850049,-500.0,0.00019726,7]
[335524396,1724305850058,-500.0,0.00019726,7]
[335524397,1724305850067,-500.0,0.00019726,7]
[335524398,1724305850077,-500.0,0.00019726,7]
[335524399,1724305850088,-500.0,0.00019726,7]
[335524400,1724305850099,-500.0,0.00019726,7]
[335524401,1724305850109,-500.0,0.00019726,7]
[335524402,1724305850119,-500.0,0.00019726,7]
[335524403,1724305850130,-500.0,0.00019726,7]
[335524404,1724305850140,-500.0,0.00019726,7]
[335524405,1724305850152,-500.0,0.00019726,7]
[335524406,1724305850161,-500.0,0.00019726,7]
[335524407,1724305850173,-500.0,0.00019726,7]
[335524408,1724305850182,-600.28998488,0.00019726,7]
[335524409,1724305850195,-721.17,0.00019726,7]
[335524410,1724305850206,-500.0,0.00019726,7]
[335524411,1724305850216,-548.27,0.00019726,7]
[335524412,1724305850227,-500.0,0.00019726,2]
[335524413,1724305850239,-500.0,0.00019726,7]
[335524414,1724305850249,-500.0,0.00019726,7]
[335524415,1724305850260,-500.0,0.00019726,7]
[335524416,1724305850270,-500.0,0.00019726,7]
[335524417,1724305850280,-500.0,0.00019726,7]
[335524418,1724305850290,-500.0,0.00019726,7]
[335524419,1724305850301,-648.18599625,0.00019726,7]
[335524420,1724305850313,-500.0,0.00019726,7]
[335524421,1724305850326,-500.0,0.00019726,7]
[335524422,1724305850337,-500.0,0.00019726,7]
[335524423,1724305850347,-201.663362,0.00019726,7]
[335524424,1724305850357,-595.45787619,0.00019726,7]
[335524425,1724305850367,-500.0,0.00019726,7]
[335524426,1724305850377,-500.0,0.00019726,7]
[335524427,1724305850387,-500.0,0.00019726,7]
[335524428,1724305850396,-500.0,0.00019726,7]
[335524429,1724305850406,-500.0,0.00019726,7]
[335524430,1724305850416,-500.0,0.00019726,7]
[335524431,1724305850429,-512.81,0.00019726,7]
[335524432,1724305850440,-500.0,0.00019726,7]
[335524433,1724305850452,-500.0,0.00019726,7]
[335524434,1724305850462,-500.0,0.00019726,7]
[335524435,1724305850473,-500.0,0.00019726,7]
[335524436,1724305850484,-500.0,0.00019726,7]
[335524437,1724305850495,-500.0,0.00019726,7]
[335524438,1724305850505,-500.0,0.00019726,7]
[335524439,1724305850515,-500.0,0.00019726,7]
[335524440,1724305850526,-500.0,0.00019726,7]
[335524441,1724305850537,-500.0,0.00019726,7]
[335524442,1724305850547,-500.0,0.00019726,7]
[335524443,1724305850558,-500.0,0.00019726,7]
[335524444,1724305850568,-500.0,0.00019726,7]
[335524445,1724305850579,-500.0,0.00019726,7]
[335524446,1724305850591,-500.0,0.00019726,7]
[335524447,1724305850601,-500.0,0.00019726,7]
[335524448,1724305850610,-500.0,0.00019726,7]
[335524449,1724305850621,-500.0,0.00019726,7]
[335524450,1724305850631,-500.0,0.00019726,7]
[335524451,1724305850641,-500.0,0.00019726,7]
[335524452,1724305850651,-500.0,0.00019726,7]
[335524453,1724305850661,-500.0,0.00019726,7]
[335524454,1724305850671,-500.0,0.00019726,7]
[335524455,1724305850681,-500.0,0.00019726,7]
[335524456,1724305850691,-500.0,0.00019726,7]
[335524457,1724305850702,-500.0,0.00019726,7]
[335524458,1724305850712,-500.0,0.00019726,7]
[335524459,1724305850721,-500.0,0.00019726,7]
[335524460,1724305850732,-500.0,0.00019726,7]
[335524461,1724305850742,-500.0,0.00019726,7]
[335524462,1724305850752,-718.39,0.00019726,7]
[335524463,1724305850762,-500.0,0.00019726,7]
[335524464,1724305850772,-739.29,0.00019726,7]
[335524465,1724305850782,-500.0,0.00019726,7]
[335524466,1724305850791,-500.0,0.00019726,7]
[335524467,1724305850801,-500.0,0.00019726,7]
[335524468,1724305850813,-750.55,0.00019726,7]
[335524469,1724305850824,-500.0,0.00019726,7]
[335524470,1724305850835,-500.0,0.00019726,7]
[335524471,1724305850844,-500.0,0.00019726,7]
[335524472,1724305850855,-500.0,0.00019726,7]
[335524473,1724305850869,-500.0,0.00019726,7]
[335524474,1724305850880,-500.0,0.00019726,7]
[335524475,1724305850891,-532.74568534,0.00019726,7]
[335524476,1724305850901,-500.0,0.00019726,7]
[335524477,1724305850910,-500.0,0.00019726,7]
[335524478,1724305850920,-500.0,0.00019726,7]
[335524479,1724305850929,-500.0,0.00019726,7]
[335524480,1724305850939,-500.0,0.00019726,7]
[335524481,1724305850948,-500.0,0.00019726,7]
[335524482,1724305850958,-500.0,0.00019726,7]
[335524483,1724305850969,-164.07782288,0.00019726,7]
[335524484,1724305860127,5000.0,9.906e-05,2]
[335524486,1724305875520,5000.0,9.906e-05,2]
[335524515,1724306680527,405.57594711,9.899e-05,2]
[335524519,1724306733213,210.56315453,9.899e-05,2]
[335524522,1724306746825,285.4487675,9.899e-05,2]
[335524523,1724306757345,811.47145884,9.899e-05,2]
[335524528,1724306769000,155.18235923,9.899e-05,2]
[335524529,1724306774758,5000.0,0.00019,60]
[335524544,1724306954793,474.6604466,9.899e-05,2]
[335524581,1724307031843,-300.0,9.999e-05,2]
[335524582,1724307031853,-247.15252531,9.999e-05,2]
[335524583,1724307031863,-211.0,0.0001,2]
[335524584,1724307031873,-110.33747469,0.0001,5]
[335524585,1724307031885,-1047.35151462,0.0001,5]
[335524586,1724307031898,-2749.43532758,0.0001,5]
[335524587,1724307031910,-3257.60598568,0.0001,5]
[335524588,1724307033128,399.86116849,9.899e-05,2]
[335524621,1724307037825,-13822.45972315,0.0001,5]
[335524626,1724307037860,-2002.76489858,0.0001,5]
[335524628,1724307037870,-250.43122441,0.0001026,2]
[335524630,1724307037881,-24900.0,0.00010301,2]
[335524632,1724307037893,-553.24680566,0.00010739,2]
[335524634,1724307037903,-223.52112672,0.00010958,2]
[335524636,1724307037913,-198.31,0.00010959,2]
[335524638,1724307037923,-165.26,0.00010959,2]
[335524640,1724307037933,-420.0,0.00010999,2]
[335524642,1724307037943,-188.58516866,0.00011409,2]
[335524645,1724307037954,-154.76012181,0.00011731,2]
[335524647,1724307037966,-20801.28523468,0.00011731,2]
[335524649,1724307037977,-587.0,0.00012099,2]
[335524651,1724307037988,-3092.99892406,0.00012356,2]
[335524653,1724307037998,-1237.07519956,0.00012779,2]
[335524655,1724307038008,-728.34861839,0.00012898,2]
[335524657,1724307038018,-521.35824671,0.00012898,2]